[Event "*** Titled Tuesday Blitz"]
[Site "Chess.com"]
[Date "2021.02.16"]
[Round "7"]
[White "FontVella8"]
[Black "HouseOfDurin"]
[Result "1-0"]
[WhiteElo "2568"]
[BlackElo "2170"]
[TimeControl "180+1"]
[EndTime "11:18:10 PST"]
[Termination "FontVella8 won on time"]

1. d4 {[%clk 0:03:00.9]} 1... Nf6 {[%clk 0:02:59.1]} 2. Nf3 {[%clk 0:02:55.4]}
2... c5 {[%clk 0:02:59.4]} 3. c3 {[%clk 0:02:55.1]} 3... cxd4 {[%clk 0:02:58.6]}
4. cxd4 {[%clk 0:02:54.9]} 4... g6 {[%clk 0:02:59.2]} 5. Nc3 {[%clk 0:02:55.3]}
5... Bg7 {[%clk 0:02:59.7]} 6. h4 {[%clk 0:02:54.2]} 6... h5 {[%clk 0:02:58.7]}
7. e4 {[%clk 0:02:54.2]} 7... d6 {[%clk 0:02:52.1]} 8. Bc4 {[%clk 0:02:53.2]}
8... O-O {[%clk 0:02:51]} 9. Ng5 {[%clk 0:02:52.8]} 9... e6 {[%clk 0:02:43.6]}
10. Bb3 {[%clk 0:02:51]} 10... d5 {[%clk 0:02:36.6]} 11. e5 {[%clk 0:02:49.6]}
11... Nh7 {[%clk 0:02:36.1]} 12. O-O {[%clk 0:02:47.2]} 12... Nc6 {[%clk
0:02:32.5]} 13. Qd3 {[%clk 0:02:45.1]} 13... a5 {[%clk 0:02:25]} 14. Nb5 {[%clk
0:02:41.8]} 14... b6 {[%clk 0:02:13.1]} 15. Nxh7 {[%clk 0:02:38]} 15... Kxh7
{[%clk 0:02:11.9]} 16. Bg5 {[%clk 0:02:38.5]} 16... f6 {[%clk 0:02:02.6]} 17.
Bc2 {[%clk 0:02:33]} 17... fxg5 {[%clk 0:00:56.3]} 18. Qxg6+ {[%clk 0:02:31.2]}
18... Kg8 {[%clk 0:00:56.5]} 19. Qh7+ {[%clk 0:02:09.9]} 19... Kf7 {[%clk
0:00:56.1]} 20. Qxh5+ {[%clk 0:02:10.1]} 20... Ke7 {[%clk 0:00:51.4]} 21. Qxg5+
{[%clk 0:02:09.8]} 21... Kd7 {[%clk 0:00:51.1]} 22. Qxg7+ {[%clk 0:02:09]} 22...
Qe7 {[%clk 0:00:51.4]} 23. Qxe7+ {[%clk 0:02:03.7]} 23... Kxe7 {[%clk
0:00:47.6]} 24. Rad1 {[%clk 0:01:54.4]} 24... Ba6 {[%clk 0:00:47.5]} 25. a4
{[%clk 0:01:53.8]} 25... Nb4 {[%clk 0:00:46.4]} 26. Bg6 {[%clk 0:01:51.8]} 26...
Rf4 {[%clk 0:00:44.6]} 27. h5 {[%clk 0:01:50.1]} 27... Rg8 {[%clk 0:00:23.3]}
28. g3 {[%clk 0:01:49.5]} 28... Rg4 {[%clk 0:00:19.5]} 29. Kg2 {[%clk
0:01:48.7]} 29... R4xg6 {[%clk 0:00:14.2]} 30. hxg6 {[%clk 0:01:48.1]} 30...
Rxg6 {[%clk 0:00:15.1]} 31. Rh1 {[%clk 0:01:46.4]} 31... Rg7 {[%clk 0:00:11.8]}
32. Rc1 {[%clk 0:01:45.8]} 32... Bxb5 {[%clk 0:00:09.7]} 33. axb5 {[%clk
0:01:44.6]} 33... Kd7 {[%clk 0:00:09.1]} 34. Rh6 {[%clk 0:01:41.5]} 34... a4
{[%clk 0:00:06.9]} 35. Ra1 {[%clk 0:01:39.5]} 35... Nc2 {[%clk 0:00:01.5]} 36.
Rxa4 {[%clk 0:01:39]} 36... Re7 {[%clk 0:00:01.1]} 37. Ra7+ {[%clk 0:01:38.1]}
37... Ke8 {[%clk 0:00:01.7]} 38. Rh8+ {[%clk 0:01:37.9]} 38... Kf7 {[%clk
0:00:02.3]} 39. Rh7+ {[%clk 0:01:38.2]} 39... Kg6 {[%clk 0:00:03]} 40. Raxe7
{[%clk 0:01:38]} 40... Nxd4 {[%clk 0:00:03.5]} 41. g4 {[%clk 0:01:34.7]} 41...
Kg5 {[%clk 0:00:02.5]} 42. Ref7 {[%clk 0:01:24.9]} 42... Ne2 {[%clk 0:00:01.9]}
43. Rhg7+ {[%clk 0:01:24]} 43... Kh6 {[%clk 0:00:01.7]} 44. f4 {[%clk
0:01:15.5]} 44... d4 {[%clk 0:00:01.5]} 45. f5 {[%clk 0:01:04.3]} 1-0

[Event "*** Titled Tuesday Blitz"]
[Site "Chess.com"]
[Date "2021.02.16"]
[Round "7"]
[White "PotapovaM"]
[Black "mr65"]
[Result "1-0"]
[WhiteElo "2583"]
[BlackElo "2144"]
[TimeControl "180+1"]
[EndTime "11:18:10 PST"]
[Termination "PotapovaM won on time"]

1. e4 {[%clk 0:02:57.8]} 1... e5 {[%clk 0:02:48.8]} 2. Nf3 {[%clk 0:02:57.3]}
2... Nc6 {[%clk 0:02:43.8]} 3. Bb5 {[%clk 0:02:57.9]} 3... a6 {[%clk 0:02:43.1]}
4. Ba4 {[%clk 0:02:57.9]} 4... Nf6 {[%clk 0:02:43]} 5. O-O {[%clk 0:02:58.2]}
5... Be7 {[%clk 0:02:43.1]} 6. Re1 {[%clk 0:02:57.6]} 6... b5 {[%clk 0:02:42.4]}
7. Bb3 {[%clk 0:02:57.3]} 7... O-O {[%clk 0:02:42.3]} 8. h3 {[%clk 0:02:56.7]}
8... d5 {[%clk 0:02:41.4]} 9. exd5 {[%clk 0:02:53.4]} 9... Nxd5 {[%clk
0:02:40.8]} 10. Nxe5 {[%clk 0:02:50.4]} 10... Nxe5 {[%clk 0:02:40]} 11. Rxe5
{[%clk 0:02:49.9]} 11... Bb7 {[%clk 0:02:39]} 12. d3 {[%clk 0:02:41.1]} 12...
Bf6 {[%clk 0:02:29.7]} 13. Re1 {[%clk 0:02:39.8]} 13... Re8 {[%clk 0:02:28.6]}
14. Nd2 {[%clk 0:02:29.1]} 14... Rxe1+ {[%clk 0:02:24.1]} 15. Qxe1 {[%clk
0:02:30]} 15... Nf4 {[%clk 0:02:19.4]} 16. Ne4 {[%clk 0:02:29.2]} 16... Be5
{[%clk 0:02:02.4]} 17. Nc5 {[%clk 0:02:03.1]} 17... Qg5 {[%clk 0:01:26.9]} 18.
g3 {[%clk 0:02:02.3]} 18... Nxh3+ {[%clk 0:01:12.4]} 19. Kf1 {[%clk 0:01:50.9]}
19... Qh5 {[%clk 0:00:48.9]} 20. Nxb7 {[%clk 0:01:43.4]} 20... Re8 {[%clk
0:00:33.4]} 21. Nc5 {[%clk 0:01:35.2]} 21... Nf4 {[%clk 0:00:25.5]} 22. Kg1
{[%clk 0:00:44.3]} 22... Nh3+ {[%clk 0:00:09.6]} 23. Kg2 {[%clk 0:00:44.2]}
23... Nxf2 {[%clk 0:00:08.4]} 24. Qxf2 {[%clk 0:00:37.2]} 24... Bxb2 {[%clk
0:00:05.3]} 25. Qxf7+ {[%clk 0:00:29.8]} 25... Qxf7 {[%clk 0:00:04.5]} 26. Bxf7+
{[%clk 0:00:30.7]} 26... Kxf7 {[%clk 0:00:04.4]} 27. Bxb2 {[%clk 0:00:31.6]}
27... Re2+ {[%clk 0:00:03.4]} 28. Kf3 {[%clk 0:00:30.5]} 28... Rxc2 {[%clk
0:00:02.1]} 29. Bd4 {[%clk 0:00:30.8]} 1-0

[Event "*** Titled Tuesday Blitz"]
[Site "Chess.com"]
[Date "2021.02.16"]
[Round "7"]
[White "GelmanAlexander"]
[Black "Danfii"]
[Result "1-0"]
[WhiteElo "2598"]
[BlackElo "2416"]
[TimeControl "180+1"]
[EndTime "11:18:11 PST"]
[Termination "GelmanAlexander won by resignation"]

1. d4 {[%clk 0:03:00.9]} 1... Nf6 {[%clk 0:03:00]} 2. Nc3 {[%clk 0:03:01.2]}
2... d5 {[%clk 0:03:00.1]} 3. Bf4 {[%clk 0:03:01.4]} 3... e6 {[%clk 0:03:00.2]}
4. Nb5 {[%clk 0:03:01.3]} 4... Na6 {[%clk 0:03:00.4]} 5. e3 {[%clk 0:03:01]}
5... c6 {[%clk 0:03:00.8]} 6. Nc3 {[%clk 0:03:00.9]} 6... Nc7 {[%clk 0:03:00.2]}
7. Nf3 {[%clk 0:03:01.1]} 7... Bd6 {[%clk 0:03:00.3]} 8. Ne5 {[%clk 0:03:01.6]}
8... Ne4 {[%clk 0:02:59.8]} 9. Nxe4 {[%clk 0:02:57.4]} 9... dxe4 {[%clk
0:03:00.7]} 10. Qh5 {[%clk 0:02:20]} 10... O-O {[%clk 0:02:56.2]} 11. O-O-O
{[%clk 0:02:10.9]} 11... f6 {[%clk 0:02:54.2]} 12. Nc4 {[%clk 0:02:07.5]} 12...
Bxf4 {[%clk 0:02:54.1]} 13. exf4 {[%clk 0:02:08.4]} 13... Nd5 {[%clk 0:02:51.1]}
14. g3 {[%clk 0:02:06.7]} 14... a5 {[%clk 0:02:46.7]} 15. Bg2 {[%clk 0:02:03]}
15... b5 {[%clk 0:02:39.2]} 16. Ne3 {[%clk 0:02:02.9]} 16... f5 {[%clk
0:02:39.6]} 17. Rhe1 {[%clk 0:01:51.3]} 17... a4 {[%clk 0:02:38.5]} 18. a3
{[%clk 0:01:44.4]} 18... Qb6 {[%clk 0:02:35]} 19. c3 {[%clk 0:01:38.2]} 19...
Rb8 {[%clk 0:02:25.9]} 20. f3 {[%clk 0:01:38]} 20... Nxe3 {[%clk 0:02:13.1]} 21.
Rxe3 {[%clk 0:01:38]} 21... c5 {[%clk 0:02:13.8]} 22. fxe4 {[%clk 0:01:35]}
22... b4 {[%clk 0:02:14.2]} 23. axb4 {[%clk 0:01:23.6]} 23... cxb4 {[%clk
0:02:14.4]} 24. cxb4 {[%clk 0:01:21.9]} 24... Qxb4 {[%clk 0:02:11.5]} 25. Qe2
{[%clk 0:01:13.2]} 25... a3 {[%clk 0:01:36.6]} 26. Rxa3 {[%clk 0:01:09.7]} 26...
Bd7 {[%clk 0:01:37]} 27. Rd2 {[%clk 0:00:57.1]} 27... Ba4 {[%clk 0:01:29.1]} 28.
Qe3 {[%clk 0:00:50.7]} 28... Rfc8+ {[%clk 0:01:22.1]} 29. Rc3 {[%clk 0:00:50.3]}
29... Qb3 {[%clk 0:01:05]} 30. exf5 {[%clk 0:00:43.5]} 30... Rxc3+ {[%clk
0:00:50.9]} 31. Qxc3 {[%clk 0:00:40]} 31... Qa2 {[%clk 0:00:45.9]} 32. b4 {[%clk
0:00:22.7]} 32... Bc2 {[%clk 0:00:26.8]} 33. Rxc2 {[%clk 0:00:20.2]} 33... Qa6
{[%clk 0:00:27.1]} 34. fxe6 {[%clk 0:00:17.8]} 34... Re8 {[%clk 0:00:23.4]} 35.
d5 {[%clk 0:00:17.3]} 1-0

[Event "*** Titled Tuesday Blitz"]
[Site "Chess.com"]
[Date "2021.02.16"]
[Round "7"]
[White "DonPreuss"]
[Black "jens1102"]
[Result "0-1"]
[WhiteElo "2256"]
[BlackElo "2423"]
[TimeControl "180+1"]
[EndTime "11:18:11 PST"]
[Termination "jens1102 won by resignation"]

1. d4 {[%clk 0:02:50.9]} 1... Nf6 {[%clk 0:02:59.8]} 2. Nc3 {[%clk 0:02:50.4]}
2... d5 {[%clk 0:02:59.9]} 3. e4 {[%clk 0:02:50]} 3... dxe4 {[%clk 0:02:59.3]}
4. f3 {[%clk 0:02:50.3]} 4... c5 {[%clk 0:02:44.4]} 5. d5 {[%clk 0:02:49.9]}
5... exf3 {[%clk 0:02:43.5]} 6. Nxf3 {[%clk 0:02:49.7]} 6... e6 {[%clk 0:02:44]}
7. Bb5+ {[%clk 0:02:49.9]} 7... Bd7 {[%clk 0:02:43]} 8. dxe6 {[%clk 0:02:50.5]}
8... fxe6 {[%clk 0:02:41]} 9. O-O {[%clk 0:02:49.4]} 9... Be7 {[%clk 0:02:36.3]}
10. Bc4 {[%clk 0:02:40.9]} 10... Nc6 {[%clk 0:02:32.3]} 11. Ng5 {[%clk
0:02:40.8]} 11... Nd4 {[%clk 0:02:26.7]} 12. Re1 {[%clk 0:02:40.9]} 12... Qb6
{[%clk 0:02:20.8]} 13. Nce4 {[%clk 0:02:30.9]} 13... O-O {[%clk 0:02:12.8]} 14.
c3 {[%clk 0:02:28.4]} 14... Nxe4 {[%clk 0:01:55.5]} 15. Nxe4 {[%clk 0:02:19.1]}
15... Bb5 {[%clk 0:01:50]} 16. Bxb5 {[%clk 0:02:01.2]} 16... Nxb5 {[%clk
0:01:50.9]} 17. Bg5 {[%clk 0:01:33.2]} 17... Rad8 {[%clk 0:01:43.9]} 18. Qh5
{[%clk 0:01:29.5]} 18... c4+ {[%clk 0:01:17.8]} 19. Kh1 {[%clk 0:01:25.5]} 19...
Rd5 {[%clk 0:01:16.3]} 20. Qg4 {[%clk 0:01:18.6]} 20... h5 {[%clk 0:00:57.3]}
21. Qh4 {[%clk 0:01:02.8]} 21... Bxg5 {[%clk 0:00:54.1]} 22. Nxg5 {[%clk
0:01:01]} 22... Qd8 {[%clk 0:00:53.4]} 23. a4 {[%clk 0:00:41.6]} 23... Nc7
{[%clk 0:00:47]} 24. Qxc4 {[%clk 0:00:24.3]} 24... Rxg5 {[%clk 0:00:39.5]} 25.
Rad1 {[%clk 0:00:20.5]} 25... Rd5 {[%clk 0:00:39.8]} 26. Rc1 {[%clk 0:00:18.8]}
26... Qd6 {[%clk 0:00:37.8]} 27. Qh4 {[%clk 0:00:18.4]} 27... Rf4 {[%clk
0:00:37]} 28. Qg3 {[%clk 0:00:17.6]} 28... Rg4 {[%clk 0:00:37.3]} 29. Qf3 {[%clk
0:00:17.4]} 29... Rd2 {[%clk 0:00:35.3]} 30. Rf1 {[%clk 0:00:17.1]} 30... Qd5
{[%clk 0:00:29.6]} 31. Qf7+ {[%clk 0:00:09.4]} 31... Kh7 {[%clk 0:00:25.6]} 0-1

[Event "*** Titled Tuesday Blitz"]
[Site "Chess.com"]
[Date "2021.02.16"]
[Round "7"]
[White "frederiksvane"]
[Black "GOGIEFF"]
[Result "1-0"]
[WhiteElo "2720"]
[BlackElo "2890"]
[TimeControl "180+1"]
[EndTime "11:18:16 PST"]
[Termination "frederiksvane won by resignation"]

1. e4 {[%clk 0:03:00.9]} 1... c5 {[%clk 0:02:58.2]} 2. Nf3 {[%clk 0:03:00.5]}
2... d6 {[%clk 0:02:58.6]} 3. Bb5+ {[%clk 0:03:00.3]} 3... Bd7 {[%clk
0:02:55.8]} 4. c4 {[%clk 0:03:00.2]} 4... Nf6 {[%clk 0:02:53.9]} 5. Nc3 {[%clk
0:03:00]} 5... Nc6 {[%clk 0:02:50.5]} 6. d4 {[%clk 0:02:59.7]} 6... cxd4 {[%clk
0:02:48]} 7. Nxd4 {[%clk 0:03:00.6]} 7... e6 {[%clk 0:02:43.4]} 8. Be3 {[%clk
0:02:58.8]} 8... Be7 {[%clk 0:02:43.6]} 9. O-O {[%clk 0:02:58.8]} 9... O-O
{[%clk 0:02:43.3]} 10. Qe2 {[%clk 0:02:54.5]} 10... Rc8 {[%clk 0:02:38]} 11.
Rac1 {[%clk 0:02:52.1]} 11... a6 {[%clk 0:02:17.6]} 12. Bxc6 {[%clk 0:02:52]}
12... bxc6 {[%clk 0:02:17]} 13. c5 {[%clk 0:02:48.4]} 13... d5 {[%clk
0:02:08.9]} 14. e5 {[%clk 0:02:47.6]} 14... Ne8 {[%clk 0:02:07.3]} 15. Qxa6
{[%clk 0:02:29.9]} 15... f6 {[%clk 0:01:54.2]} 16. Nf3 {[%clk 0:02:19.3]} 16...
Nc7 {[%clk 0:01:41.9]} 17. Qd3 {[%clk 0:02:07.8]} 17... Be8 {[%clk 0:01:40.6]}
18. exf6 {[%clk 0:01:59.5]} 18... gxf6 {[%clk 0:01:40.3]} 19. Nd4 {[%clk
0:01:31.1]} 19... e5 {[%clk 0:01:29.3]} 20. Nf5 {[%clk 0:01:10.1]} 20... d4
{[%clk 0:01:29.6]} 21. Bh6 {[%clk 0:01:03.4]} 21... dxc3 {[%clk 0:01:24.2]} 22.
Qg3+ {[%clk 0:01:03.1]} 22... Bg6 {[%clk 0:01:24.3]} 23. h4 {[%clk 0:00:55.1]}
23... Kf7 {[%clk 0:01:02.2]} 24. Rcd1 {[%clk 0:00:43.3]} 24... Bxf5 {[%clk
0:00:59.9]} 25. Rxd8 {[%clk 0:00:28]} 25... Rfxd8 {[%clk 0:01:00.8]} 26. Qxc3
{[%clk 0:00:26.4]} 26... Nd5 {[%clk 0:01:00.2]} 27. Qf3 {[%clk 0:00:24.8]} 27...
Ke6 {[%clk 0:01:00.5]} 28. Kh2 {[%clk 0:00:20.9]} 28... Rg8 {[%clk 0:01:00]} 29.
Rc1 {[%clk 0:00:18.5]} 29... Rg4 {[%clk 0:00:58.8]} 30. g3 {[%clk 0:00:17.2]}
30... Rcg8 {[%clk 0:00:51.4]} 31. Be3 {[%clk 0:00:16.8]} 31... Be4 {[%clk
0:00:50.4]} 32. Qe2 {[%clk 0:00:17.2]} 32... Nxe3 {[%clk 0:00:48.6]} 33. Qxe3
{[%clk 0:00:18.1]} 33... Bd5 {[%clk 0:00:48.9]} 34. b3 {[%clk 0:00:15.3]} 34...
R8g6 {[%clk 0:00:43.6]} 35. Rd1 {[%clk 0:00:15.2]} 35... f5 {[%clk 0:00:43.7]}
36. Re1 {[%clk 0:00:12]} 36... f4 {[%clk 0:00:41.8]} 37. Qxe5+ {[%clk
0:00:11.9]} 37... Kf7 {[%clk 0:00:41.7]} 38. Qxe7+ {[%clk 0:00:12.1]} 38... Kg8
{[%clk 0:00:41.8]} 39. Qe8+ {[%clk 0:00:11.9]} 39... Kg7 {[%clk 0:00:42]} 40.
Re7+ {[%clk 0:00:12.5]} 40... Kf6 {[%clk 0:00:42.3]} 41. Qf8+ {[%clk 0:00:12.1]}
1-0

[Event "*** Titled Tuesday Blitz"]
[Site "Chess.com"]
[Date "2021.02.16"]
[Round "7"]
[White "TimKett"]
[Black "NiranjanNavalgund"]
[Result "1-0"]
[WhiteElo "2244"]
[BlackElo "2449"]
[TimeControl "180+1"]
[EndTime "11:18:16 PST"]
[Termination "TimKett won by checkmate"]

1. e4 {[%clk 0:03:00.9]} 1... e5 {[%clk 0:02:35.6]} 2. f4 {[%clk 0:02:58.2]}
2... Nc6 {[%clk 0:02:36.5]} 3. Nf3 {[%clk 0:02:56.7]} 3... d6 {[%clk 0:02:32.7]}
4. Nc3 {[%clk 0:02:53.7]} 4... Nf6 {[%clk 0:02:30.2]} 5. Bb5 {[%clk 0:02:49.2]}
5... Bd7 {[%clk 0:02:20.8]} 6. d3 {[%clk 0:02:48.5]} 6... exf4 {[%clk 0:01:58]}
7. Bxf4 {[%clk 0:02:47.5]} 7... Be7 {[%clk 0:01:58.9]} 8. Qd2 {[%clk 0:02:33.5]}
8... O-O {[%clk 0:01:59.8]} 9. O-O-O {[%clk 0:02:32.7]} 9... a6 {[%clk
0:01:53.6]} 10. Bxc6 {[%clk 0:02:28]} 10... Bxc6 {[%clk 0:01:53.3]} 11. g4
{[%clk 0:02:23.2]} 11... d5 {[%clk 0:01:50.7]} 12. e5 {[%clk 0:02:22.6]} 12...
Nxg4 {[%clk 0:01:50.6]} 13. Rhg1 {[%clk 0:02:19.8]} 13... d4 {[%clk 0:01:50.3]}
14. Ne4 {[%clk 0:01:53.1]} 14... f5 {[%clk 0:01:45.3]} 15. exf6 {[%clk
0:01:42.4]} 15... Nxf6 {[%clk 0:01:33]} 16. Qg2 {[%clk 0:01:20.1]} 16... Rf7
{[%clk 0:01:22.7]} 17. Ne5 {[%clk 0:01:18.4]} 17... Bxe4 {[%clk 0:01:21.6]} 18.
dxe4 {[%clk 0:01:14.4]} 18... Bd6 {[%clk 0:01:21]} 19. Nxf7 {[%clk 0:01:06.9]}
19... Bxf4+ {[%clk 0:01:19.9]} 20. Kb1 {[%clk 0:01:07.5]} 20... Qf8 {[%clk
0:01:20.8]} 21. Rdf1 {[%clk 0:00:52.8]} 21... Nh5 {[%clk 0:01:17.3]} 22. Ne5
{[%clk 0:00:28.6]} 22... Qe7 {[%clk 0:00:55.9]} 23. Nd3 {[%clk 0:00:26.5]} 23...
Bh6 {[%clk 0:00:55.2]} 24. e5 {[%clk 0:00:21.7]} 24... c5 {[%clk 0:00:51]} 25.
Qd5+ {[%clk 0:00:20.7]} 25... Kh8 {[%clk 0:00:51.2]} 26. e6 {[%clk 0:00:20.1]}
26... Rd8 {[%clk 0:00:48.6]} 27. Qxh5 {[%clk 0:00:19.2]} 27... c4 {[%clk
0:00:48.5]} 28. Ne5 {[%clk 0:00:18.5]} 28... c3 {[%clk 0:00:43.1]} 29. Nf7+
{[%clk 0:00:13.9]} 29... Kg8 {[%clk 0:00:43.5]} 30. Nxh6+ {[%clk 0:00:13.1]}
30... Kh8 {[%clk 0:00:43.5]} 31. Nf7+ {[%clk 0:00:11.4]} 31... Kg8 {[%clk
0:00:43.3]} 32. b3 {[%clk 0:00:06.6]} 32... Qa3 {[%clk 0:00:37.6]} 33. Rxg7+
{[%clk 0:00:06.5]} 33... Kxg7 {[%clk 0:00:36.4]} 34. Qg5+ {[%clk 0:00:04.9]}
34... Kf8 {[%clk 0:00:36.2]} 35. Qxd8+ {[%clk 0:00:04.7]} 35... Kg7 {[%clk
0:00:36.7]} 36. Qg5+ {[%clk 0:00:05]} 36... Kf8 {[%clk 0:00:36.8]} 37. Nd6#
{[%clk 0:00:04.1]} 1-0

[Event "*** Titled Tuesday Blitz"]
[Site "Chess.com"]
[Date "2021.02.16"]
[Round "7"]
[White "milenapn"]
[Black "lucachess49"]
[Result "0-1"]
[WhiteElo "2116"]
[BlackElo "2359"]
[TimeControl "180+1"]
[EndTime "11:18:20 PST"]
[Termination "lucachess49 won on time"]

1. e4 {[%clk 0:02:39.8]} 1... e5 {[%clk 0:02:56.3]} 2. Nf3 {[%clk 0:02:37.8]}
2... Nc6 {[%clk 0:02:56.5]} 3. Bb5 {[%clk 0:02:37.7]} 3... a6 {[%clk 0:02:56.5]}
4. Ba4 {[%clk 0:02:37.9]} 4... Nf6 {[%clk 0:02:54.9]} 5. d3 {[%clk 0:02:37.7]}
5... d6 {[%clk 0:02:53.6]} 6. c3 {[%clk 0:02:37]} 6... g6 {[%clk 0:02:52.2]} 7.
h3 {[%clk 0:02:35.5]} 7... Bg7 {[%clk 0:02:51.9]} 8. Nbd2 {[%clk 0:02:35]} 8...
O-O {[%clk 0:02:51.3]} 9. Nf1 {[%clk 0:02:35]} 9... d5 {[%clk 0:02:50.3]} 10.
Ng3 {[%clk 0:02:34.2]} 10... b5 {[%clk 0:02:35.9]} 11. Bc2 {[%clk 0:02:33.4]}
11... Bb7 {[%clk 0:02:31.3]} 12. O-O {[%clk 0:02:32.3]} 12... Re8 {[%clk
0:02:28.9]} 13. Qe2 {[%clk 0:02:31.9]} 13... Qd7 {[%clk 0:02:28]} 14. Nh2 {[%clk
0:02:24.5]} 14... Rad8 {[%clk 0:02:28.2]} 15. Bg5 {[%clk 0:02:19.7]} 15... h6
{[%clk 0:02:26.3]} 16. Bxf6 {[%clk 0:02:19.1]} 16... Bxf6 {[%clk 0:02:27.2]} 17.
Ng4 {[%clk 0:02:18.5]} 17... Bg7 {[%clk 0:02:27.6]} 18. f4 {[%clk 0:02:10.6]}
18... h5 {[%clk 0:02:20.8]} 19. Ne3 {[%clk 0:02:07.1]} 19... d4 {[%clk
0:02:08.3]} 20. Nd5 {[%clk 0:02:04.9]} 20... h4 {[%clk 0:01:58.6]} 21. Nh1
{[%clk 0:02:00.4]} 21... exf4 {[%clk 0:01:57.5]} 22. Rxf4 {[%clk 0:01:53.9]}
22... Qxd5 {[%clk 0:01:57.3]} 23. Rxh4 {[%clk 0:01:46.4]} 23... Qc5 {[%clk
0:01:49.9]} 24. Nf2 {[%clk 0:01:13.1]} 24... dxc3 {[%clk 0:01:49.7]} 25. bxc3
{[%clk 0:01:12.9]} 25... Bxc3 {[%clk 0:01:49.2]} 26. Rf1 {[%clk 0:01:03.7]}
26... Nd4 {[%clk 0:01:48.1]} 27. Qe3 {[%clk 0:00:53.4]} 27... Qe5 {[%clk
0:01:07.1]} 28. Ng4 {[%clk 0:00:46.6]} 28... Nf5 {[%clk 0:00:46.5]} 29. Rxf5
{[%clk 0:00:09.8]} 29... Bd4 {[%clk 0:00:36.9]} 30. Nh6+ {[%clk 0:00:02.8]}
30... Kh7 {[%clk 0:00:25.8]} 31. Rxf7+ {[%clk 0:00:02.4]} 31... Kh8 {[%clk
0:00:26]} 0-1

[Event "*** Titled Tuesday Blitz"]
[Site "Chess.com"]
[Date "2021.02.16"]
[Round "7"]
[White "MarcoRiehle"]
[Black "MasterKroket"]
[Result "0-1"]
[WhiteElo "2672"]
[BlackElo "2519"]
[TimeControl "180+1"]
[EndTime "11:18:26 PST"]
[Termination "MasterKroket won by checkmate"]

1. e4 {[%clk 0:03:00.9]} 1... c5 {[%clk 0:03:00.1]} 2. a3 {[%clk 0:03:00.4]}
2... e6 {[%clk 0:02:57.8]} 3. b4 {[%clk 0:03:00.1]} 3... cxb4 {[%clk 0:02:58.4]}
4. axb4 {[%clk 0:03:01]} 4... Bxb4 {[%clk 0:02:58.8]} 5. Bb2 {[%clk 0:03:01]}
5... Nf6 {[%clk 0:02:58.1]} 6. e5 {[%clk 0:03:00.9]} 6... Nd5 {[%clk 0:02:50.7]}
7. c4 {[%clk 0:03:01.5]} 7... Ne7 {[%clk 0:02:49.2]} 8. Qg4 {[%clk 0:03:02.1]}
8... Nf5 {[%clk 0:02:46.1]} 9. Bd3 {[%clk 0:03:00.4]} 9... h5 {[%clk 0:02:46]}
10. Qf3 {[%clk 0:02:59.5]} 10... g6 {[%clk 0:02:33.7]} 11. Nh3 {[%clk
0:02:57.7]} 11... Nc6 {[%clk 0:02:32]} 12. O-O {[%clk 0:02:55.3]} 12... b6
{[%clk 0:02:29.9]} 13. Nc3 {[%clk 0:02:53.7]} 13... Bb7 {[%clk 0:02:28.1]} 14.
Ne4 {[%clk 0:02:53.4]} 14... Be7 {[%clk 0:02:28.3]} 15. Nd6+ {[%clk 0:02:51.1]}
15... Bxd6 {[%clk 0:02:23.3]} 16. exd6 {[%clk 0:02:52]} 16... Rg8 {[%clk
0:02:06.2]} 17. Bxf5 {[%clk 0:02:40.5]} 17... gxf5 {[%clk 0:02:05.9]} 18. Qxh5
{[%clk 0:02:34.7]} 18... Nd4 {[%clk 0:01:49.6]} 19. f3 {[%clk 0:02:28.2]} 19...
Qf6 {[%clk 0:01:31.3]} 20. Kh1 {[%clk 0:02:26.1]} 20... O-O-O {[%clk 0:01:16.9]}
21. Rxa7 {[%clk 0:02:23.9]} 21... e5 {[%clk 0:00:52.2]} 22. c5 {[%clk
0:02:12.2]} 22... b5 {[%clk 0:00:49.6]} 23. Bxd4 {[%clk 0:02:00.2]} 23... exd4
{[%clk 0:00:49.3]} 24. Rb1 {[%clk 0:01:40.5]} 24... Bc6 {[%clk 0:00:49.2]} 25.
Rc7+ {[%clk 0:01:20.8]} 25... Kb8 {[%clk 0:00:49.2]} 26. d3 {[%clk 0:01:15.9]}
26... Rde8 {[%clk 0:00:47.8]} 27. Rg1 {[%clk 0:01:08.1]} 27... Rg6 {[%clk
0:00:40]} 28. Ra1 {[%clk 0:00:45.2]} 28... Rh8 {[%clk 0:00:36.6]} 29. Re1 {[%clk
0:00:45.5]} 29... Rgg8 {[%clk 0:00:29]} 30. Qxh8 {[%clk 0:00:36.9]} 30... Rxh8
{[%clk 0:00:28.8]} 31. Nf2 {[%clk 0:00:37.2]} 31... Qh4 {[%clk 0:00:26.5]} 32.
Kg1 {[%clk 0:00:36.4]} 32... Qxh2+ {[%clk 0:00:26.2]} 33. Kf1 {[%clk 0:00:37]}
33... Qg3 {[%clk 0:00:24.3]} 34. Rb1 {[%clk 0:00:29]} 34... Rg8 {[%clk
0:00:23.3]} 35. Rb2 {[%clk 0:00:13.8]} 35... Qxg2+ {[%clk 0:00:23.5]} 36. Ke1
{[%clk 0:00:14.3]} 36... Qg1+ {[%clk 0:00:23.6]} 37. Kd2 {[%clk 0:00:13.3]}
37... Qxf2+ {[%clk 0:00:22.6]} 38. Kc1 {[%clk 0:00:13.9]} 38... Qe1+ {[%clk
0:00:22.5]} 39. Kc2 {[%clk 0:00:13.7]} 39... Rg2+ {[%clk 0:00:23.1]} 40. Kb3
{[%clk 0:00:14.1]} 40... Qc3+ {[%clk 0:00:23.6]} 41. Ka2 {[%clk 0:00:14.4]}
41... Qxb2# {[%clk 0:00:24.1]} 0-1